[Event "Late-Titled-Tuesday-Blitz-April-30-2024"]
[Site "Chess.com"]
[Date "2024.04.30"]
[Round "3"]
[White "Andrii_Prydun"]
[Black "anasta10"]
[Result "0-1"]
[WhiteElo "2368"]
[BlackElo "2599"]
[TimeControl "180+1"]
[EndTime "14:29:42 PDT"]
[Termination "anasta10 won on time"]

1. e4 {[%clk 0:03:00.9]} 1... g6 {[%clk 0:02:59.9]} 2. d4 {[%clk 0:03:00.6]}
2... Bg7 {[%clk 0:03:00.3]} 3. Ne2 {[%clk 0:02:59.6]} 3... c5 {[%clk 0:03:00.2]}
4. c3 {[%clk 0:02:59.6]} 4... cxd4 {[%clk 0:03:00.1]} 5. cxd4 {[%clk 0:02:59.8]}
5... d5 {[%clk 0:03:00.8]} 6. e5 {[%clk 0:02:59.7]} 6... Nc6 {[%clk 0:03:00.8]}
7. Nbc3 {[%clk 0:02:59.2]} 7... Nh6 {[%clk 0:03:00.6]} 8. h3 {[%clk 0:02:56.3]}
8... f6 {[%clk 0:02:57.9]} 9. f4 {[%clk 0:02:55.6]} 9... O-O {[%clk 0:02:55.9]}
10. g4 {[%clk 0:02:55]} 10... Nf7 {[%clk 0:02:52.9]} 11. Be3 {[%clk 0:02:53.4]}
11... e6 {[%clk 0:02:47.6]} 12. Bg2 {[%clk 0:02:52.9]} 12... fxe5 {[%clk
0:02:32.2]} 13. fxe5 {[%clk 0:02:52.6]} 13... Qh4+ {[%clk 0:02:32.7]} 14. Bf2
{[%clk 0:02:51.9]} 14... Qe7 {[%clk 0:02:33.4]} 15. h4 {[%clk 0:02:47.9]} 15...
Nh6 {[%clk 0:02:25.7]} 16. Ng3 {[%clk 0:02:41.6]} 16... Qb4 {[%clk 0:02:16.9]}
17. Rb1 {[%clk 0:02:32]} 17... Bd7 {[%clk 0:02:07.3]} 18. a3 {[%clk 0:02:30.5]}
18... Qb6 {[%clk 0:02:06.1]} 19. Na4 {[%clk 0:02:28.6]} 19... Qa5+ {[%clk
0:02:03.4]} 20. b4 {[%clk 0:02:28.3]} 20... Qc7 {[%clk 0:01:55]} 21. Nc5 {[%clk
0:02:18.4]} 21... b6 {[%clk 0:01:33.2]} 22. Nb3 {[%clk 0:02:05.4]} 22... a5
{[%clk 0:01:31.3]} 23. b5 {[%clk 0:02:04]} 23... Nxe5 {[%clk 0:01:18.7]} 24. Rc1
{[%clk 0:01:48.5]} 24... Nc4 {[%clk 0:01:17.2]} 25. Nd2 {[%clk 0:01:39]} 25...
Rac8 {[%clk 0:01:15.8]} 26. Nxc4 {[%clk 0:01:36.1]} 26... dxc4 {[%clk
0:01:16.7]} 27. d5 {[%clk 0:01:35.8]} 27... Qe5+ {[%clk 0:01:12.1]} 28. Qe2
{[%clk 0:01:27.3]} 28... Qxe2+ {[%clk 0:01:11.8]} 29. Kxe2 {[%clk 0:01:28.2]}
29... Nxg4 {[%clk 0:01:12.1]} 30. Bxb6 {[%clk 0:01:26.8]} 30... Bxb5 {[%clk
0:01:10.7]} 31. dxe6 {[%clk 0:01:26.8]} 31... c3+ {[%clk 0:01:07.6]} 32. Ke1
{[%clk 0:01:26.8]} 32... Rfe8 {[%clk 0:01:04.8]} 33. Bd5 {[%clk 0:01:21.9]}
33... Bc4 {[%clk 0:01:04.4]} 34. Bxc4 {[%clk 0:00:52.3]} 34... Rxc4 {[%clk
0:01:05.3]} 35. Kd1 {[%clk 0:00:39.3]} 35... Rxe6 {[%clk 0:01:00.9]} 36. Ba7
{[%clk 0:00:37.6]} 36... a4 {[%clk 0:00:55.3]} 37. Rc2 {[%clk 0:00:33.1]} 37...
Ra6 {[%clk 0:00:50.1]} 38. Bg1 {[%clk 0:00:31.6]} 38... Ra8 {[%clk 0:00:40.4]}
39. h5 {[%clk 0:00:27.3]} 39... Rb8 {[%clk 0:00:39.5]} 40. hxg6 {[%clk
0:00:20.5]} 40... hxg6 {[%clk 0:00:37.9]} 41. Ne2 {[%clk 0:00:15.3]} 41... Rb1+
{[%clk 0:00:36.9]} 42. Rc1 {[%clk 0:00:15.1]} 42... c2+ {[%clk 0:00:24.3]} 43.
Ke1 {[%clk 0:00:13.8]} 43... Rxc1+ {[%clk 0:00:23.2]} 44. Nxc1 {[%clk
0:00:13.7]} 44... Bh6 {[%clk 0:00:22.5]} 45. Rxh6 {[%clk 0:00:03]} 45... Nxh6
{[%clk 0:00:23.4]} 46. Kd2 {[%clk 0:00:03]} 46... Nf5 {[%clk 0:00:22.3]} 0-1

[Event "Late-Titled-Tuesday-Blitz-April-30-2024"]
[Site "Chess.com"]
[Date "2024.04.30"]
[Round "3"]
[White "sansanathalia"]
[Black "miraitrunks"]
[Result "0-1"]
[WhiteElo "2421"]
[BlackElo "2248"]
[TimeControl "180+1"]
[EndTime "14:29:42 PDT"]
[Termination "miraitrunks won by resignation"]

1. d4 {[%clk 0:03:00.9]} 1... d6 {[%clk 0:02:58.2]} 2. e3 {[%clk 0:02:58.4]}
2... Nf6 {[%clk 0:02:51.9]} 3. Bd3 {[%clk 0:02:56]} 3... g6 {[%clk 0:02:44.9]}
4. Nf3 {[%clk 0:02:54.2]} 4... Bg7 {[%clk 0:02:45.8]} 5. O-O {[%clk 0:02:53]}
5... O-O {[%clk 0:02:46.1]} 6. b3 {[%clk 0:02:51.6]} 6... Nbd7 {[%clk
0:02:46.2]} 7. Bb2 {[%clk 0:02:50]} 7... c5 {[%clk 0:02:47.1]} 8. Nbd2 {[%clk
0:02:48.2]} 8... b6 {[%clk 0:02:47.3]} 9. c4 {[%clk 0:02:47]} 9... Bb7 {[%clk
0:02:47.4]} 10. Rc1 {[%clk 0:02:43.8]} 10... Re8 {[%clk 0:02:45.6]} 11. Qc2
{[%clk 0:02:22]} 11... e5 {[%clk 0:02:42.3]} 12. dxe5 {[%clk 0:02:19.6]} 12...
dxe5 {[%clk 0:02:41.4]} 13. Ne4 {[%clk 0:02:15.2]} 13... Nxe4 {[%clk 0:02:30.7]}
14. Bxe4 {[%clk 0:02:13]} 14... Qc7 {[%clk 0:02:29.2]} 15. Bxb7 {[%clk
0:02:03.3]} 15... Qxb7 {[%clk 0:02:30.1]} 16. Rfd1 {[%clk 0:02:03.2]} 16... Rad8
{[%clk 0:02:29.4]} 17. Rd5 {[%clk 0:01:37.6]} 17... e4 {[%clk 0:02:23.7]} 18.
Nd2 {[%clk 0:01:34.7]} 18... f5 {[%clk 0:02:08.7]} 19. Nf1 {[%clk 0:01:30.1]}
19... Nf6 {[%clk 0:02:05.3]} 20. Rxd8 {[%clk 0:01:25.4]} 20... Rxd8 {[%clk
0:02:04.7]} 21. Rd1 {[%clk 0:01:25.2]} 21... Qc7 {[%clk 0:02:03.4]} 22. Ng3
{[%clk 0:01:19.5]} 22... h5 {[%clk 0:02:03.1]} 23. h3 {[%clk 0:00:57.1]} 23...
h4 {[%clk 0:02:01.8]} 24. Ne2 {[%clk 0:00:56.7]} 24... Kf7 {[%clk 0:02:00.2]}
25. Nf4 {[%clk 0:00:54.1]} 25... Nh5 {[%clk 0:01:51.4]} 26. Rxd8 {[%clk
0:00:26]} 26... Qxd8 {[%clk 0:01:33.9]} 27. Nxh5 {[%clk 0:00:25.6]} 27... Bxb2
{[%clk 0:01:32.5]} 28. Nf4 {[%clk 0:00:16.2]} 28... Be5 {[%clk 0:01:24.3]} 29.
Nd5 {[%clk 0:00:16]} 29... g5 {[%clk 0:01:21.3]} 30. a3 {[%clk 0:00:15.7]} 30...
Bb8 {[%clk 0:01:18.6]} 31. Kf1 {[%clk 0:00:11.7]} 31... Qd6 {[%clk 0:01:18.6]}
32. Qd1 {[%clk 0:00:11.4]} 32... Kg6 {[%clk 0:01:15.8]} 33. Ke2 {[%clk
0:00:09.3]} 33... f4 {[%clk 0:01:13.5]} 34. exf4 {[%clk 0:00:08.2]} 34... gxf4
{[%clk 0:01:14.4]} 35. Kf1 {[%clk 0:00:08.9]} 35... f3 {[%clk 0:01:06]} 36. gxf3
{[%clk 0:00:08.5]} 36... Qh2 {[%clk 0:01:05.2]} 37. fxe4 {[%clk 0:00:03.6]}
37... Qxh3+ {[%clk 0:01:05.1]} 38. Ke2 {[%clk 0:00:03.7]} 38... Qg2 {[%clk
0:01:01]} 39. Ne3 {[%clk 0:00:01.8]} 39... Qxe4 {[%clk 0:00:59.5]} 40. Qg1+
{[%clk 0:00:02.5]} 40... Kf7 {[%clk 0:00:55.8]} 41. Qd1 {[%clk 0:00:03.1]} 41...
Ke7 {[%clk 0:00:49.9]} 42. Ke1 {[%clk 0:00:01.7]} 42... h3 {[%clk 0:00:49.5]}
43. Qh5 {[%clk 0:00:01]} 43... h2 {[%clk 0:00:43.5]} 44. Qg5+ {[%clk 0:00:01.5]}
44... Ke8 {[%clk 0:00:42.4]} 45. Qg8+ {[%clk 0:00:01.7]} 45... Ke7 {[%clk
0:00:42.5]} 46. Qg7+ {[%clk 0:00:02.3]} 46... Ke8 {[%clk 0:00:41.5]} 47. Qg8+
{[%clk 0:00:02.6]} 47... Kd7 {[%clk 0:00:41.2]} 48. Qg7+ {[%clk 0:00:02.7]}
48... Kc8 {[%clk 0:00:41.4]} 49. Qg8+ {[%clk 0:00:02.6]} 49... Kb7 {[%clk
0:00:40.5]} 50. Qg7+ {[%clk 0:00:02.5]} 50... Ka8 {[%clk 0:00:40.4]} 0-1

[Event "Late-Titled-Tuesday-Blitz-April-30-2024"]
[Site "Chess.com"]
[Date "2024.04.30"]
[Round "3"]
[White "LukaRadovic0803"]
[Black "Sl4werThanYou"]
[Result "0-1"]
[WhiteElo "2501"]
[BlackElo "2798"]
[TimeControl "180+1"]
[EndTime "14:29:44 PDT"]
[Termination "Sl4werThanYou won by resignation"]

1. Nf3 {[%clk 0:03:00.9]} 1... d5 {[%clk 0:02:51.6]} 2. c4 {[%clk 0:03:01.8]}
2... e6 {[%clk 0:02:49]} 3. g3 {[%clk 0:03:01.7]} 3... Nf6 {[%clk 0:02:47.9]} 4.
b3 {[%clk 0:03:00.6]} 4... Be7 {[%clk 0:02:39.2]} 5. Bg2 {[%clk 0:03:00.6]} 5...
O-O {[%clk 0:02:38.9]} 6. Bb2 {[%clk 0:03:01.1]} 6... b6 {[%clk 0:02:33.1]} 7.
O-O {[%clk 0:03:00.2]} 7... Bb7 {[%clk 0:02:31.1]} 8. e3 {[%clk 0:02:59.7]} 8...
c5 {[%clk 0:02:29.9]} 9. Nc3 {[%clk 0:02:59.3]} 9... Nc6 {[%clk 0:02:26.7]} 10.
Qe2 {[%clk 0:02:58.6]} 10... Qd7 {[%clk 0:02:23.5]} 11. cxd5 {[%clk 0:02:54.5]}
11... exd5 {[%clk 0:02:24.4]} 12. d4 {[%clk 0:02:52.3]} 12... cxd4 {[%clk
0:02:24.5]} 13. Nxd4 {[%clk 0:02:43.6]} 13... Nxd4 {[%clk 0:02:24.3]} 14. exd4
{[%clk 0:02:43.6]} 14... Bb4 {[%clk 0:02:25.2]} 15. Qb5 {[%clk 0:02:26.1]} 15...
Qxb5 {[%clk 0:02:21.3]} 16. Nxb5 {[%clk 0:02:25]} 16... a6 {[%clk 0:02:16.4]}
17. a3 {[%clk 0:02:12.6]} 17... Bd2 {[%clk 0:01:59]} 18. Rfd1 {[%clk 0:02:00.6]}
18... Bh6 {[%clk 0:01:47.4]} 19. Nd6 {[%clk 0:01:58.5]} 19... Bc8 {[%clk
0:01:40.9]} 20. Nxc8 {[%clk 0:01:53.3]} 20... Rfxc8 {[%clk 0:01:41.8]} 21. a4
{[%clk 0:01:32.1]} 21... Rc2 {[%clk 0:01:38.7]} 22. Ba3 {[%clk 0:01:32]} 22...
Rac8 {[%clk 0:01:38.3]} 23. Bf1 {[%clk 0:01:26.2]} 23... a5 {[%clk 0:01:32.8]}
24. b4 {[%clk 0:01:24.4]} 24... Ne4 {[%clk 0:01:30.7]} 25. f3 {[%clk 0:01:14.7]}
25... Nc3 {[%clk 0:01:29.5]} 26. Re1 {[%clk 0:01:10.8]} 26... Nxa4 {[%clk
0:01:19.3]} 27. bxa5 {[%clk 0:01:07.8]} 27... bxa5 {[%clk 0:01:20.2]} 28. f4
{[%clk 0:01:01.9]} 28... Nc3 {[%clk 0:01:15.8]} 29. Bc5 {[%clk 0:00:57.1]} 29...
a4 {[%clk 0:01:11.5]} 30. Bd3 {[%clk 0:00:52.5]} 30... Rd2 {[%clk 0:01:05.2]}
31. Re3 {[%clk 0:00:52.4]} 31... g6 {[%clk 0:00:40.9]} 32. Rae1 {[%clk
0:00:42.2]} 32... Bf8 {[%clk 0:00:17.2]} 33. Re8 {[%clk 0:00:29.9]} 33... Rxc5
{[%clk 0:00:17.1]} 34. dxc5 {[%clk 0:00:26.1]} 34... Rxd3 {[%clk 0:00:17.5]} 35.
c6 {[%clk 0:00:24.5]} 35... Nb5 {[%clk 0:00:18.1]} 36. Rb8 {[%clk 0:00:20.4]}
36... Nd6 {[%clk 0:00:14.9]} 37. Rc1 {[%clk 0:00:15.1]} 37... a3 {[%clk
0:00:04.9]} 38. c7 {[%clk 0:00:15]} 38... a2 {[%clk 0:00:05.1]} 39. Rc8 {[%clk
0:00:14.5]} 39... Nxc8 {[%clk 0:00:04.4]} 0-1

[Event "Late-Titled-Tuesday-Blitz-April-30-2024"]
[Site "Chess.com"]
[Date "2024.04.30"]
[Round "3"]
[White "LyonBeast"]
[Black "DeTimmerman"]
[Result "1-0"]
[WhiteElo "3120"]
[BlackElo "2780"]
[TimeControl "180+1"]
[EndTime "14:29:46 PDT"]
[Termination "LyonBeast won by resignation"]

1. d4 {[%clk 0:03:00]} 1... Nf6 {[%clk 0:03:00.1]} 2. Bf4 {[%clk 0:02:58]} 2...
e6 {[%clk 0:02:59.7]} 3. e3 {[%clk 0:02:53]} 3... d5 {[%clk 0:03:00]} 4. Nf3
{[%clk 0:02:50.6]} 4... Bd6 {[%clk 0:02:59.5]} 5. Ne5 {[%clk 0:02:49.7]} 5...
O-O {[%clk 0:02:57.8]} 6. c3 {[%clk 0:02:48.9]} 6... b6 {[%clk 0:02:57.4]} 7. h4
{[%clk 0:02:41.6]} 7... Bb7 {[%clk 0:02:54.1]} 8. h5 {[%clk 0:02:41.6]} 8...
Nfd7 {[%clk 0:02:39.9]} 9. Bd3 {[%clk 0:02:38.9]} 9... f6 {[%clk 0:02:23.7]} 10.
Ng6 {[%clk 0:02:39.1]} 10... Re8 {[%clk 0:02:11.9]} 11. Bxd6 {[%clk 0:02:36.4]}
11... cxd6 {[%clk 0:02:11.8]} 12. Nd2 {[%clk 0:02:33.6]} 12... f5 {[%clk
0:02:10.2]} 13. Nf4 {[%clk 0:02:16.5]} 13... e5 {[%clk 0:01:56.1]} 14. Ne2
{[%clk 0:02:13]} 14... Qf6 {[%clk 0:01:49]} 15. Qb3 {[%clk 0:02:04.3]} 15... Kh8
{[%clk 0:01:33.5]} 16. O-O-O {[%clk 0:01:57.6]} 16... Na6 {[%clk 0:01:33.6]} 17.
Qa3 {[%clk 0:01:54.4]} 17... Nc7 {[%clk 0:01:30.6]} 18. Bc2 {[%clk 0:01:37.2]}
18... a5 {[%clk 0:01:24.4]} 19. Ng3 {[%clk 0:01:33.7]} 19... e4 {[%clk
0:01:18.8]} 20. Ne2 {[%clk 0:01:31.9]} 20... b5 {[%clk 0:01:19.3]} 21. Nf4
{[%clk 0:01:29.2]} 21... Nb6 {[%clk 0:01:13.8]} 22. Kb1 {[%clk 0:01:23.2]} 22...
Reb8 {[%clk 0:01:02.6]} 23. b3 {[%clk 0:01:22.7]} 23... Bc6 {[%clk 0:01:01]} 24.
Qb2 {[%clk 0:01:10]} 24... Nc4 {[%clk 0:01:00.8]} 25. Nxc4 {[%clk 0:01:09.4]}
25... bxc4 {[%clk 0:01:01.6]} 26. Ka1 {[%clk 0:01:01]} 26... Rb7 {[%clk
0:01:01]} 27. Rb1 {[%clk 0:00:59.3]} 27... Rab8 {[%clk 0:01:00.8]} 28. Qc1
{[%clk 0:00:58.3]} 28... Nb5 {[%clk 0:00:55.8]} 29. bxc4 {[%clk 0:00:53]} 29...
dxc4 {[%clk 0:00:44.4]} 30. Bd1 {[%clk 0:00:53.4]} 30... d5 {[%clk 0:00:28.6]}
31. Ba4 {[%clk 0:00:40]} 31... Qd6 {[%clk 0:00:27.7]} 32. Bxb5 {[%clk
0:00:34.3]} 32... Rxb5 {[%clk 0:00:28.6]} 33. Rxb5 {[%clk 0:00:26.5]} 33... Rxb5
{[%clk 0:00:29.5]} 34. Qc2 {[%clk 0:00:25.7]} 34... Kg8 {[%clk 0:00:20.5]} 35.
Rb1 {[%clk 0:00:23.8]} 35... g5 {[%clk 0:00:19.3]} 36. hxg6 {[%clk 0:00:22.5]}
36... hxg6 {[%clk 0:00:20.2]} 37. Rxb5 {[%clk 0:00:22.4]} 37... Bxb5 {[%clk
0:00:21.1]} 38. Qb2 {[%clk 0:00:22.4]} 38... Qc6 {[%clk 0:00:21.8]} 39. Qa3
{[%clk 0:00:20.7]} 39... g5 {[%clk 0:00:19.2]} 40. Nh3 {[%clk 0:00:21]} 40... g4
{[%clk 0:00:10.5]} 41. Nf4 {[%clk 0:00:20.7]} 41... Qh6 {[%clk 0:00:11.2]} 42.
Qxa5 {[%clk 0:00:19.9]} 42... Bc6 {[%clk 0:00:07.9]} 43. Qd8+ {[%clk 0:00:19.5]}
43... Kf7 {[%clk 0:00:08]} 44. Qc7+ {[%clk 0:00:19.3]} 44... Ke8 {[%clk
0:00:08.5]} 45. Kb2 {[%clk 0:00:19.4]} 45... Bd7 {[%clk 0:00:03.8]} 46. Nxd5
{[%clk 0:00:18.7]} 46... Qa6 {[%clk 0:00:04.3]} 47. Qe5+ {[%clk 0:00:17.4]}
47... Kf7 {[%clk 0:00:03]} 48. Qe7+ {[%clk 0:00:17.7]} 48... Kg6 {[%clk
0:00:01.9]} 49. Qxd7 {[%clk 0:00:16.8]} 49... Qb5+ {[%clk 0:00:02.5]} 50. Qxb5
{[%clk 0:00:16.9]} 1-0

[Event "Late-Titled-Tuesday-Blitz-April-30-2024"]
[Site "Chess.com"]
[Date "2024.04.30"]
[Round "3"]
[White "superchess02"]
[Black "ozates"]
[Result "1-0"]
[WhiteElo "2859"]
[BlackElo "2594"]
[TimeControl "180+1"]
[EndTime "14:29:48 PDT"]
[Termination "superchess02 won on time"]

1. d4 {[%clk 0:03:00.9]} 1... Nf6 {[%clk 0:02:59.7]} 2. c4 {[%clk 0:03:01.4]}
2... e6 {[%clk 0:03:00]} 3. Nc3 {[%clk 0:03:02.1]} 3... d5 {[%clk 0:03:00.3]} 4.
Bg5 {[%clk 0:03:01.9]} 4... Nbd7 {[%clk 0:02:59.7]} 5. e3 {[%clk 0:03:01.1]}
5... c6 {[%clk 0:03:00]} 6. Nf3 {[%clk 0:03:00.5]} 6... Qa5 {[%clk 0:03:00.1]}
7. cxd5 {[%clk 0:02:57]} 7... Nxd5 {[%clk 0:02:59.8]} 8. Rc1 {[%clk 0:02:56.3]}
8... Nxc3 {[%clk 0:02:57.8]} 9. bxc3 {[%clk 0:02:56.3]} 9... Ba3 {[%clk
0:02:57.8]} 10. Rc2 {[%clk 0:02:56.8]} 10... O-O {[%clk 0:02:57.6]} 11. Be2
{[%clk 0:02:56.5]} 11... Re8 {[%clk 0:02:57.5]} 12. O-O {[%clk 0:02:54]} 12...
b6 {[%clk 0:02:57.6]} 13. Qd3 {[%clk 0:02:53.9]} 13... e5 {[%clk 0:02:51.2]} 14.
e4 {[%clk 0:02:50.7]} 14... Bf8 {[%clk 0:02:49.8]} 15. Bd2 {[%clk 0:02:45.5]}
15... Qa4 {[%clk 0:02:34.3]} 16. Rb2 {[%clk 0:02:40.9]} 16... c5 {[%clk
0:02:32]} 17. d5 {[%clk 0:02:38.1]} 17... Nf6 {[%clk 0:02:17.5]} 18. c4 {[%clk
0:02:33.6]} 18... Ba6 {[%clk 0:01:54.6]} 19. Bc3 {[%clk 0:02:33.5]} 19... Bd6
{[%clk 0:01:37.3]} 20. Nh4 {[%clk 0:02:25.4]} 20... Bc8 {[%clk 0:01:34]} 21. Bd1
{[%clk 0:02:03.6]} 21... Qd7 {[%clk 0:01:24.1]} 22. Re2 {[%clk 0:01:58]} 22...
a6 {[%clk 0:01:21.3]} 23. f4 {[%clk 0:01:53.3]} 23... b5 {[%clk 0:01:17]} 24.
fxe5 {[%clk 0:01:48.9]} 24... Bxe5 {[%clk 0:01:16.1]} 25. Bxe5 {[%clk 0:01:49]}
25... Rxe5 {[%clk 0:01:17]} 26. Qg3 {[%clk 0:01:49.2]} 26... Qe7 {[%clk
0:01:06.6]} 27. Ref2 {[%clk 0:01:44.4]} 27... Kh8 {[%clk 0:01:02.8]} 28. Bc2
{[%clk 0:01:33.3]} 28... Bd7 {[%clk 0:00:54.8]} 29. Nf3 {[%clk 0:01:27.5]} 29...
Rxe4 {[%clk 0:00:46.4]} 30. Bxe4 {[%clk 0:01:17.6]} 30... Nxe4 {[%clk
0:00:47.3]} 31. Re1 {[%clk 0:01:07.5]} 31... bxc4 {[%clk 0:00:43.5]} 32. Qf4
{[%clk 0:00:55.1]} 32... f5 {[%clk 0:00:43.6]} 33. Nd2 {[%clk 0:00:52.9]} 33...
g5 {[%clk 0:00:10]} 34. Qe3 {[%clk 0:00:48.4]} 34... Re8 {[%clk 0:00:06.6]} 35.
Nxe4 {[%clk 0:00:47]} 35... fxe4 {[%clk 0:00:07]} 36. Qc3+ {[%clk 0:00:47.7]}
36... Qe5 {[%clk 0:00:07.1]} 37. Qxc4 {[%clk 0:00:43.2]} 37... e3 {[%clk
0:00:06.5]} 38. Rf3 {[%clk 0:00:39.3]} 38... e2 {[%clk 0:00:05.9]} 39. Qxc5
{[%clk 0:00:38.7]} 39... Bb5 {[%clk 0:00:03.9]} 40. Qc3 {[%clk 0:00:33.1]} 40...
g4 {[%clk 0:00:02.7]} 41. Re3 {[%clk 0:00:24.9]} 41... Qxc3 {[%clk 0:00:02.6]}
42. Rxc3 {[%clk 0:00:25.8]} 42... Rd8 {[%clk 0:00:02.1]} 43. Rc5 {[%clk
0:00:20]} 43... Rd6 {[%clk 0:00:01.3]} 44. a4 {[%clk 0:00:19.4]} 44... Bd3
{[%clk 0:00:00.4]} 45. Kf2 {[%clk 0:00:19]} 1-0

[Event "Late-Titled-Tuesday-Blitz-April-30-2024"]
[Site "Chess.com"]
[Date "2024.04.30"]
[Round "3"]
[White "annasargsyan_m"]
[Black "picturesquecheck"]
[Result "0-1"]
[WhiteElo "2600"]
[BlackElo "2426"]
[TimeControl "180+1"]
[EndTime "14:29:48 PDT"]
[Termination "picturesquecheck won by resignation"]

1. d4 {[%clk 0:03:00.9]} 1... Nf6 {[%clk 0:02:57.4]} 2. c4 {[%clk 0:03:01.2]}
2... e6 {[%clk 0:02:57.3]} 3. Nf3 {[%clk 0:03:01.5]} 3... b6 {[%clk 0:02:57]} 4.
g3 {[%clk 0:03:01.6]} 4... Bb7 {[%clk 0:02:57.4]} 5. Bg2 {[%clk 0:03:02.2]} 5...
Be7 {[%clk 0:02:57.8]} 6. O-O {[%clk 0:02:57.6]} 6... O-O {[%clk 0:02:57.9]} 7.
d5 {[%clk 0:02:58.2]} 7... exd5 {[%clk 0:02:55]} 8. Nh4 {[%clk 0:02:58.7]} 8...
c6 {[%clk 0:02:49.1]} 9. cxd5 {[%clk 0:02:58.9]} 9... cxd5 {[%clk 0:02:50]} 10.
Nc3 {[%clk 0:02:57.5]} 10... Re8 {[%clk 0:02:43.2]} 11. Nf5 {[%clk 0:02:57.5]}
11... Bf8 {[%clk 0:02:36]} 12. Bg5 {[%clk 0:02:58]} 12... h6 {[%clk 0:02:32.1]}
13. Bf4 {[%clk 0:02:56.3]} 13... Na6 {[%clk 0:02:26]} 14. Re1 {[%clk 0:02:38.5]}
14... Bb4 {[%clk 0:02:03.2]} 15. Qd4 {[%clk 0:02:32.4]} 15... Bc5 {[%clk
0:02:01.1]} 16. Qd2 {[%clk 0:02:31.6]} 16... Nc7 {[%clk 0:02:00.3]} 17. e3
{[%clk 0:02:08.4]} 17... Ne6 {[%clk 0:01:43.3]} 18. Nxd5 {[%clk 0:02:03]} 18...
Bxd5 {[%clk 0:01:39.6]} 19. Bxd5 {[%clk 0:02:03.9]} 19... Nxd5 {[%clk
0:01:37.8]} 20. Qxd5 {[%clk 0:02:04.8]} 20... Qf6 {[%clk 0:01:33.8]} 21. b3
{[%clk 0:01:54.6]} 21... Nxf4 {[%clk 0:01:33.1]} 22. exf4 {[%clk 0:01:51.4]}
22... Qb2 {[%clk 0:01:26.6]} 23. Qf3 {[%clk 0:01:38.7]} 23... d5 {[%clk
0:01:15.7]} 24. Reb1 {[%clk 0:01:37.6]} 24... Qf6 {[%clk 0:01:13.9]} 25. Qg4
{[%clk 0:01:31.3]} 25... Rad8 {[%clk 0:01:12.8]} 26. Re1 {[%clk 0:01:30.9]}
26... Kh7 {[%clk 0:01:11.4]} 27. Kg2 {[%clk 0:01:29.1]} 27... g6 {[%clk
0:01:11]} 28. Nh4 {[%clk 0:01:28.1]} 28... Qb2 {[%clk 0:01:07.4]} 29. Qf3 {[%clk
0:01:28]} 29... Re4 {[%clk 0:01:01.8]} 30. f5 {[%clk 0:01:20.7]} 30... g5 {[%clk
0:00:56.1]} 31. f6 {[%clk 0:01:17.6]} 31... Qxf2+ {[%clk 0:00:45.5]} 32. Qxf2
{[%clk 0:01:13.8]} 32... Bxf2 {[%clk 0:00:46.4]} 33. Kxf2 {[%clk 0:01:10.9]}
33... gxh4 {[%clk 0:00:45.3]} 34. Rxe4 {[%clk 0:01:03.1]} 34... dxe4 {[%clk
0:00:45.2]} 35. gxh4 {[%clk 0:01:01.8]} 35... Rd2+ {[%clk 0:00:44]} 36. Ke3
{[%clk 0:01:02.4]} 36... Rxh2 {[%clk 0:00:39.1]} 37. Rg1 {[%clk 0:01:02.4]}
37... Rh3+ {[%clk 0:00:36.1]} 38. Kxe4 {[%clk 0:00:58.4]} 38... Rxh4+ {[%clk
0:00:35.3]} 39. Ke5 {[%clk 0:00:55]} 39... Rh5+ {[%clk 0:00:35.1]} 40. Kd6
{[%clk 0:00:55.2]} 40... Rg5 {[%clk 0:00:34.6]} 41. Rf1 {[%clk 0:00:55.3]} 41...
Kg6 {[%clk 0:00:34.6]} 42. Ke7 {[%clk 0:00:55.5]} 42... h5 {[%clk 0:00:33.4]}
43. b4 {[%clk 0:00:38.7]} 43... Rg4 {[%clk 0:00:33.2]} 44. b5 {[%clk 0:00:36.2]}
44... h4 {[%clk 0:00:33.3]} 45. Rf3 {[%clk 0:00:32.7]} 45... Rg3 {[%clk
0:00:30]} 46. Rf4 {[%clk 0:00:33.1]} 46... h3 {[%clk 0:00:27.5]} 47. Rh4 {[%clk
0:00:31.7]} 47... Re3+ {[%clk 0:00:27.3]} 48. Kd6 {[%clk 0:00:30.7]} 48... Kxf6
{[%clk 0:00:27.3]} 49. a4 {[%clk 0:00:26.8]} 49... Kg5 {[%clk 0:00:25.9]} 50.
Rh8 {[%clk 0:00:26.2]} 50... f5 {[%clk 0:00:24.4]} 51. Kc6 {[%clk 0:00:26.8]}
51... Kg6 {[%clk 0:00:18.9]} 52. Kb7 {[%clk 0:00:26.7]} 52... Re7+ {[%clk
0:00:18.8]} 53. Ka6 {[%clk 0:00:27]} 53... Rh7 {[%clk 0:00:19]} 54. Rg8+ {[%clk
0:00:27.7]} 54... Kf6 {[%clk 0:00:19.4]} 55. Rf8+ {[%clk 0:00:27.8]} 55... Ke5
{[%clk 0:00:19]} 56. Re8+ {[%clk 0:00:28]} 56... Kf4 {[%clk 0:00:19.1]} 0-1